[Event "Schack-SM 2024: Mastarklassen"]
[Site "Fortnox Arena, Hejaregatan 5, Vaxjo, Sweden"]
[Date "2024.07.06"]
[Round "8.9"]
[White "Lindborg, Patrik"]
[Black "Walinder, Lars"]
[Result "0-1"]
[TimeControl "90 minutes for 40 moves + 30 minutes for the rest of the game + 30 seconds per move from move one."]
[BlackTitle "FM"]
[WhiteElo "2162"]
[BlackElo "2233"]

1. d4 {[%clk 01:30:56]} {[%emt 00:00:03]} Nf6 {[%clk 01:30:45]} {[%emt
00:00:16]} 2. c4 {[%clk 01:31:23]} {[%emt 00:00:03]} e6 {[%clk 01:31:11]}
{[%emt 00:00:04]} 3. Nf3 {[%clk 01:31:43]} {[%emt 00:00:09]} b6 {[%clk
01:30:34]} {[%emt 00:01:08]} 4. g3 {[%clk 01:30:41]} {[%emt 00:01:32]} Ba6
{[%clk 01:30:49]} {[%emt 00:00:16]} 5. Qc2 {[%clk 01:29:44]} {[%emt 00:01:26]}
c5 {[%clk 01:30:18]} {[%emt 00:01:01]} 6. d5 {[%clk 01:25:21]} {[%emt
00:04:54]} exd5 {[%clk 01:30:38]} {[%emt 00:00:09]} 7. cxd5 {[%clk 01:25:28]}
{[%emt 00:00:23]} Bb7 {[%clk 01:30:49]} {[%emt 00:00:20]} 8. Nc3 {[%clk
01:17:25]} {[%emt 00:08:32]} Nxd5 {[%clk 01:26:53]} {[%emt 00:04:26]} 9. Nxd5
{[%clk 01:15:08]} {[%emt 00:02:47]} Bxd5 {[%clk 01:27:01]} {[%emt 00:00:22]} 10.
Bg2 {[%clk 01:15:34]} {[%emt 00:00:04]} Be7 {[%clk 01:21:08]} {[%emt 00:06:23]}
11. O-O {[%clk 01:12:34]} {[%emt 00:03:30]} Nc6 {[%clk 01:12:30]} {[%emt
00:09:08]} 12. Rd1 {[%clk 01:07:52]} {[%emt 00:05:12]} Bxf3 {[%clk 00:58:52]}
{[%emt 00:14:08]} 13. Bxf3 {[%clk 01:04:18]} {[%emt 00:04:04]} Nd4 {[%clk
00:55:38]} {[%emt 00:03:45]} 14. Rxd4 {[%clk 01:04:45]} {[%emt 00:00:03]} cxd4
{[%clk 00:55:52]} {[%emt 00:00:16]} 15. Bxa8 {[%clk 01:05:05]} {[%emt
00:00:08]} Qxa8 {[%clk 00:53:59]} {[%emt 00:02:23]} 16. Qf5 {[%clk 01:04:42]}
{[%emt 00:00:53]} O-O {[%clk 00:51:06]} {[%emt 00:03:24]} 17. Qxd7 {[%clk
01:01:17]} {[%emt 00:03:55]} Qe4 {[%clk 00:34:43]} {[%emt 00:16:53]} 18. Qb5
{[%clk 01:00:16]} {[%emt 00:01:31]} Rc8 {[%clk 00:25:23]} {[%emt 00:09:49]} 19.
Bd2 {[%clk 00:43:47]} {[%emt 00:17:00]} h6 {[%clk 00:22:50]} {[%emt 00:03:03]}
20. f3 {[%clk 00:37:34]} {[%emt 00:06:43]} Qe6 {[%clk 00:21:56]} {[%emt
00:01:23]} 21. Qd3 {[%clk 00:36:42]} {[%emt 00:01:22]} Bf6 {[%clk 00:21:45]}
{[%emt 00:00:42]} 22. b3 {[%clk 00:35:12]} {[%emt 00:02:00]} Qe7 {[%clk
00:14:21]} {[%emt 00:07:54]} 23. Rc1 {[%clk 00:30:11]} {[%emt 00:05:31]} Re8
{[%clk 00:13:53]} {[%emt 00:00:58]} 24. Qc4 {[%clk 00:23:37]} {[%emt 00:07:05]}
Qe5 {[%clk 00:08:23]} {[%emt 00:05:59]} 25. Re1 {[%clk 00:18:52]} {[%emt
00:05:15]} Qf5 {[%clk 00:07:53]} {[%emt 00:01:00]} 26. Qd3 {[%clk 00:13:39]}
{[%emt 00:05:43]} Qc5 {[%clk 00:08:16]} {[%emt 00:00:07]} 27. Rc1 {[%clk
00:13:03]} {[%emt 00:01:06]} Qa3 {[%clk 00:08:10]} {[%emt 00:00:36]} 28. Rc2
{[%clk 00:13:05]} {[%emt 00:00:28]} Qe7 {[%clk 00:08:28]} {[%emt 00:00:13]} 29.
Bf4 {[%clk 00:12:10]} {[%emt 00:01:24]} Qe6 {[%clk 00:07:46]} {[%emt 00:01:13]}
30. Kg2 {[%clk 00:11:19]} {[%emt 00:01:20]} g5 {[%clk 00:06:22]} {[%emt
00:01:54]} 31. Bc1 {[%clk 00:11:26]} {[%emt 00:00:23]} h5 {[%clk 00:05:29]}
{[%emt 00:01:23]} 32. Bb2 {[%clk 00:09:41]} {[%emt 00:02:15]} Qd5 {[%clk
00:04:46]} {[%emt 00:01:14]} 33. Qc4 {[%clk 00:06:53]} {[%emt 00:03:17]} Qe5
{[%clk 00:04:44]} {[%emt 00:00:32]} 34. Rd2 {[%clk 00:06:19]} {[%emt 00:01:04]}
Qe3 {[%clk 00:02:15]} {[%emt 00:02:59]} 35. Qc2 {[%clk 00:02:45]} {[%emt
00:04:04]} g4 {[%clk 00:02:29]} {[%emt 00:00:16]} 36. Bc1 {[%clk 00:03:01]}
{[%emt 00:00:14]} gxf3+ {[%clk 00:01:22]} {[%emt 00:01:36]} 37. exf3 {[%clk
00:03:29]} {[%emt 00:00:02]} Qe1 {[%clk 00:01:27]} {[%emt 00:00:26]} 38. Ba3
{[%clk 00:01:20]} {[%emt 00:02:39]} Re3 {[%clk 00:01:12]} {[%emt 00:00:46]} 39.
Rf2 {[%clk 00:00:46]} {[%emt 00:01:04]} d3 {[%clk 00:01:12]} {[%emt 00:00:29]}
40. Qc8+ {[%clk 00:00:48]} {[%emt 00:00:27]} Re8 {[%clk 00:01:02]} {[%emt
00:00:41]} 41. Qf5 {[%clk 00:30:28]} {[%emt 00:00:50]} Re2 {[%clk 00:27:26]}
{[%emt 00:04:06]} 0-1

[Event "Schack-SM 2024: Mastarklassen"]
[Site "Fortnox Arena, Hejaregatan 5, Vaxjo, Sweden"]
[Date "2024.07.06"]
[Round "8.10"]
[White "Granath, Jonas"]
[Black "Sundin, Emanuel"]
[Result "1/2-1/2"]
[TimeControl "90 minutes for 40 moves + 30 minutes for the rest of the game + 30 seconds per move from move one."]
[WhiteElo "1948"]
[BlackElo "2165"]

1. e4 {[%clk 01:30:57]} {[%emt 00:00:03]} e5 {[%clk 01:30:52]} {[%emt
00:00:08]} 2. Nf3 {[%clk 01:31:17]} {[%emt 00:00:10]} Nc6 {[%clk 01:31:14]}
{[%emt 00:00:08]} 3. Bc4 {[%clk 01:31:39]} {[%emt 00:00:08]} Bc5 {[%clk
01:30:10]} {[%emt 00:01:34]} 4. c3 {[%clk 01:31:31]} {[%emt 00:00:37]} Nf6
{[%clk 01:29:35]} {[%emt 00:01:06]} 5. d4 {[%clk 01:31:32]} {[%emt 00:00:29]}
exd4 {[%clk 01:29:31]} {[%emt 00:00:34]} 6. cxd4 {[%clk 01:31:46]} {[%emt
00:00:16]} Bb4+ {[%clk 01:29:34]} {[%emt 00:00:26]} 7. Nbd2 {[%clk 01:31:36]}
{[%emt 00:00:40]} d5 {[%clk 01:25:01]} {[%emt 00:05:04]} 8. exd5 {[%clk
01:27:45]} {[%emt 00:04:21]} Nxd5 {[%clk 01:23:44]} {[%emt 00:01:46]} 9. O-O
{[%clk 01:12:45]} {[%emt 00:15:29]} O-O {[%clk 01:17:46]} {[%emt 00:06:29]} 10.
Ne4 {[%clk 01:05:58]} {[%emt 00:07:18]} Bg4 {[%clk 01:08:14]} {[%emt 00:10:01]}
11. Be3 {[%clk 00:59:40]} {[%emt 00:06:48]} Be7 {[%clk 01:01:29]} {[%emt
00:07:16]} 12. h3 {[%clk 00:54:33]} {[%emt 00:05:37]} Bh5 {[%clk 01:00:22]}
{[%emt 00:01:37]} 13. Ng3 {[%clk 00:50:29]} {[%emt 00:04:33]} Bg6 {[%clk
00:58:43]} {[%emt 00:02:10]} 14. Qd2 {[%clk 00:46:22]} {[%emt 00:04:36]} Bf6
{[%clk 00:55:44]} {[%emt 00:03:30]} 15. Rad1 {[%clk 00:38:19]} {[%emt
00:08:32]} Nce7 {[%clk 00:45:06]} {[%emt 00:11:08]} 16. Bg5 {[%clk 00:32:52]}
{[%emt 00:05:57]} c6 {[%clk 00:41:20]} {[%emt 00:04:17]} 17. Bxf6 {[%clk
00:30:17]} {[%emt 00:03:04]} Nxf6 {[%clk 00:41:34]} {[%emt 00:00:16]} 18. Ne5
{[%clk 00:30:11]} {[%emt 00:00:35]} Ne4 {[%clk 00:38:34]} {[%emt 00:03:31]} 19.
Qf4 {[%clk 00:24:11]} {[%emt 00:06:29]} Nxg3 {[%clk 00:36:18]} {[%emt
00:02:48]} 20. Nxg6 {[%clk 00:20:47]} {[%emt 00:03:54]} Ne2+ {[%clk 00:25:44]}
{[%emt 00:11:04]} 21. Bxe2 {[%clk 00:21:07]} {[%emt 00:00:08]} Nxg6 {[%clk
00:24:22]} {[%emt 00:01:53]} 22. Qf3 {[%clk 00:18:04]} {[%emt 00:03:31]} Qd6
{[%clk 00:23:27]} {[%emt 00:01:27]} 23. Bc4 {[%clk 00:17:29]} {[%emt 00:01:04]}
Rad8 {[%clk 00:23:22]} {[%emt 00:00:36]} 24. Rfe1 {[%clk 00:17:20]} {[%emt
00:00:39]} Ne7 {[%clk 00:20:32]} {[%emt 00:03:20]} 25. Re5 {[%clk 00:16:18]}
{[%emt 00:01:32]} Rd7 {[%clk 00:19:20]} {[%emt 00:01:42]} 26. Qe4 {[%clk
00:14:16]} {[%emt 00:02:31]} Ng6 {[%clk 00:18:14]} {[%emt 00:01:36]} 27. Re8
{[%clk 00:11:58]} {[%emt 00:02:48]} Re7 {[%clk 00:14:09]} {[%emt 00:04:36]} 28.
Rxe7 {[%clk 00:12:19]} {[%emt 00:00:09]} Nxe7 {[%clk 00:13:44]} {[%emt
00:00:56]} 29. Re1 {[%clk 00:12:00]} {[%emt 00:00:48]} Nc8 {[%clk 00:12:28]}
{[%emt 00:01:47]} 30. Re3 {[%clk 00:10:22]} {[%emt 00:02:08]} Nb6 {[%clk
00:11:55]} {[%emt 00:01:03]} 31. Bb3 {[%clk 00:10:33]} {[%emt 00:00:19]} Nc8
{[%clk 00:04:23]} {[%emt 00:08:02]} 32. Qe5 {[%clk 00:08:10]} {[%emt 00:02:53]}
g6 {[%clk 00:03:54]} {[%emt 00:00:58]} 33. Qxd6 Nxd6 {[%clk 00:04:23]} 34. Re7
{[%clk 00:08:08]} {[%emt 00:00:15]} Rd8 {[%clk 00:04:17]} {[%emt 00:00:36]} 35.
Kf1 {[%clk 00:04:26]} {[%emt 00:04:12]} Kf8 {[%clk 00:03:10]} {[%emt 00:01:38]}
36. Rc7 {[%clk 00:04:28]} {[%emt 00:00:28]} Ke8 {[%clk 00:03:18]} {[%emt
00:00:22]} 37. Ke2 {[%clk 00:02:37]} {[%emt 00:02:20]} Rd7 {[%clk 00:03:30]}
{[%emt 00:00:18]} 38. Rxd7 Kxd7 {[%clk 00:03:59]} 39. Kd3 {[%clk 00:03:01]}
{[%emt 00:00:32]} f6 {[%clk 00:04:02]} {[%emt 00:00:27]} 40. h4 {[%clk
00:02:38]} {[%emt 00:00:53]} h6 {[%clk 00:01:22]} {[%emt 00:03:10]} 41. g3
{[%clk 00:26:47]} {[%emt 00:06:22]} Ke7 {[%clk 00:25:29]} {[%emt 00:06:22]}
1/2-1/2

[Event "Schack-SM 2024: Mastarklassen"]
[Site "Fortnox Arena, Hejaregatan 5, Vaxjo, Sweden"]
[Date "2024.07.06"]
[Round "8.11"]
[White "Ostensson, Julia"]
[Black "Joensson, Oscar"]
[Result "1-0"]
[TimeControl "90 minutes for 40 moves + 30 minutes for the rest of the game + 30 seconds per move from move one."]
[WhiteElo "2004"]
[BlackElo "1989"]

1. e4 {[%clk 01:30:56]} {[%emt 00:00:04]} c6 {[%clk 01:30:56]} {[%emt
00:00:04]} 2. d4 {[%clk 01:31:23]} {[%emt 00:00:04]} d5 {[%clk 01:31:22]}
{[%emt 00:00:03]} 3. Nc3 {[%clk 01:31:50]} {[%emt 00:00:04]} dxe4 {[%clk
01:31:48]} {[%emt 00:00:04]} 4. Nxe4 {[%clk 01:32:14]} {[%emt 00:00:05]} Nf6
{[%clk 01:32:11]} {[%emt 00:00:07]} 5. Nxf6+ {[%clk 01:32:34]} {[%emt
00:00:10]} exf6 {[%clk 01:32:35]} {[%emt 00:00:06]} 6. c3 {[%clk 01:32:17]}
{[%emt 00:00:48]} Bd6 {[%clk 01:33:00]} {[%emt 00:00:04]} 7. Bd3 {[%clk
01:31:41]} {[%emt 00:01:07]} O-O {[%clk 01:33:23]} {[%emt 00:00:07]} 8. Qc2
{[%clk 01:31:58]} {[%emt 00:00:13]} Re8+ {[%clk 01:33:48]} {[%emt 00:00:05]} 9.
Ne2 {[%clk 01:32:23]} {[%emt 00:00:04]} h5 {[%clk 01:34:14]} {[%emt 00:00:04]}
10. Be3 {[%clk 01:30:16]} {[%emt 00:02:38]} Nd7 {[%clk 01:34:38]} {[%emt
00:00:06]} 11. O-O-O {[%clk 01:30:16]} {[%emt 00:00:29]} Nf8 {[%clk 01:35:03]}
{[%emt 00:00:05]} 12. Kb1 {[%clk 01:27:32]} {[%emt 00:03:14]} Be6 {[%clk
01:35:27]} {[%emt 00:00:06]} 13. c4 {[%clk 01:25:48]} {[%emt 00:02:15]} Rc8
{[%clk 01:28:09]} {[%emt 00:07:47]} 14. Nc3 {[%clk 01:12:55]} {[%emt 00:13:23]}
a6 {[%clk 00:56:40]} {[%emt 00:31:59]} 15. c5 {[%clk 01:05:12]} {[%emt
00:08:14]} Bc7 {[%clk 00:44:31]} {[%emt 00:12:39]} 16. h3 {[%clk 00:55:21]}
{[%emt 00:10:21]} Rb8 {[%clk 00:21:52]} {[%emt 00:23:08]} 17. Be4 {[%clk
00:41:17]} {[%emt 00:14:34]} Bd5 {[%clk 00:15:43]} {[%emt 00:06:39]} 18. Bxd5
{[%clk 00:38:57]} {[%emt 00:02:50]} cxd5 {[%clk 00:16:07]} {[%emt 00:00:05]} 19.
Qf5 {[%clk 00:39:12]} {[%emt 00:00:16]} 1-0

[Event "Schack-SM 2024: Mastarklassen"]
[Site "Fortnox Arena, Hejaregatan 5, Vaxjo, Sweden"]
[Date "2024.07.06"]
[Round "8.12"]
[White "Malm, Simon 1995"]
[Black "Carlstrom, Niklas"]
[Result "1/2-1/2"]
[TimeControl "90 minutes for 40 moves + 30 minutes for the rest of the game + 30 seconds per move from move one."]
[WhiteElo "1948"]
[BlackElo "2100"]

1. d4 {[%clk 01:28:48]} {[%emt 00:02:11]} d5 {[%clk 01:30:45]} {[%emt
00:00:15]} 2. c4 {[%clk 01:29:02]} {[%emt 00:00:18]} e6 {[%clk 01:31:04]}
{[%emt 00:00:10]} 3. Nc3 {[%clk 01:28:40]} {[%emt 00:00:53]} c5 {[%clk
01:31:20]} {[%emt 00:00:12]} 4. cxd5 {[%clk 01:28:22]} {[%emt 00:00:49]} exd5
{[%clk 01:31:40]} {[%emt 00:00:09]} 5. Nf3 {[%clk 01:28:40]} {[%emt 00:00:13]}
Nf6 {[%clk 01:31:56]} {[%emt 00:00:13]} 6. Bg5 {[%clk 01:28:08]} {[%emt
00:01:03]} Be6 {[%clk 01:31:59]} {[%emt 00:00:26]} 7. e4 {[%clk 01:23:33]}
{[%emt 00:05:06]} Be7 {[%clk 01:29:00]} {[%emt 00:03:28]} 8. Bxf6 {[%clk
01:20:12]} {[%emt 00:03:53]} Bxf6 {[%clk 01:28:46]} {[%emt 00:00:42]} 9. Bb5+
{[%clk 01:20:34]} {[%emt 00:00:09]} Nc6 {[%clk 01:27:10]} {[%emt 00:02:06]} 10.
O-O {[%clk 01:18:46]} {[%emt 00:02:19]} O-O {[%clk 01:24:12]} {[%emt 00:03:27]}
11. exd5 {[%clk 01:18:23]} {[%emt 00:00:54]} Bxd5 {[%clk 01:23:46]} {[%emt
00:00:55]} 12. dxc5 {[%clk 01:17:53]} {[%emt 00:01:01]} Bxc3 {[%clk 01:00:45]}
{[%emt 00:23:30]} 13. bxc3 {[%clk 01:14:26]} {[%emt 00:03:57]} Bxf3 {[%clk
00:56:24]} {[%emt 00:04:51]} 14. Qxf3 {[%clk 01:14:08]} {[%emt 00:00:48]} Rc8
{[%clk 00:53:50]} {[%emt 00:03:04]} 15. Rab1 {[%clk 01:07:36]} {[%emt
00:07:03]} Qe7 {[%clk 00:45:03]} {[%emt 00:09:15]} 16. Rfe1 {[%clk 00:52:39]}
{[%emt 00:15:29]} Qxc5 {[%clk 00:44:05]} {[%emt 00:01:27]} 17. Bxc6 {[%clk
00:52:59]} {[%emt 00:00:10]} bxc6 {[%clk 00:42:35]} {[%emt 00:01:59]} 18. Rb7
{[%clk 00:47:48]} {[%emt 00:05:41]} Rb8 {[%clk 00:41:38]} {[%emt 00:01:27]} 19.
Rc7 {[%clk 00:44:08]} {[%emt 00:04:11]} Rbc8 {[%clk 00:40:19]} {[%emt
00:01:48]} 20. Rb7 {[%clk 00:41:25]} {[%emt 00:03:14]} Rb8 {[%clk 00:40:26]}
{[%emt 00:00:22]} 21. Rc7 {[%clk 00:41:12]} {[%emt 00:00:44]} Rbc8 {[%clk
00:40:46]} {[%emt 00:00:10]} 22. Rb7 {[%clk 00:39:37]} {[%emt 00:02:05]}
1/2-1/2

[Event "Schack-SM 2024: Mastarklassen"]
[Site "Fortnox Arena, Hejaregatan 5, Vaxjo, Sweden"]
[Date "2024.07.06"]
[Round "8.13"]
[White "Arvidsson, Jonas"]
[Black "Karlsson, Stefan 2005"]
[Result "1-0"]
[TimeControl "90 minutes for 40 moves + 30 minutes for the rest of the game + 30 seconds per move from move one."]
[WhiteElo "1960"]
[BlackElo "2072"]

1. e4 {[%clk 01:30:59]} {[%emt 00:00:02]} c5 {[%clk 01:30:53]} {[%emt
00:00:06]} 2. Nf3 {[%clk 01:31:25]} {[%emt 00:00:05]} d6 {[%clk 01:31:18]}
{[%emt 00:00:04]} 3. d4 {[%clk 01:31:52]} {[%emt 00:00:04]} cxd4 {[%clk
01:31:44]} {[%emt 00:00:04]} 4. Nxd4 {[%clk 01:32:17]} {[%emt 00:00:05]} Nf6
{[%clk 01:32:09]} {[%emt 00:00:05]} 5. Nc3 {[%clk 01:32:43]} {[%emt 00:00:04]}
Nc6 {[%clk 01:32:19]} {[%emt 00:00:19]} 6. Bg5 {[%clk 01:33:08]} {[%emt
00:00:05]} e6 {[%clk 01:32:43]} {[%emt 00:00:06]} 7. Qd2 {[%clk 01:33:21]}
{[%emt 00:00:17]} a6 {[%clk 01:33:09]} {[%emt 00:00:05]} 8. O-O-O {[%clk
01:32:44]} {[%emt 00:01:06]} Bd7 {[%clk 01:33:31]} {[%emt 00:00:08]} 9. f4
{[%clk 01:25:55]} {[%emt 00:07:19]} Be7 {[%clk 01:32:21]} {[%emt 00:01:41]} 10.
Kb1 {[%clk 01:24:40]} {[%emt 00:01:45]} Nxd4 {[%clk 01:27:47]} {[%emt
00:05:03]} 11. Qxd4 {[%clk 01:22:55]} {[%emt 00:02:15]} Bc6 {[%clk 01:27:26]}
{[%emt 00:00:52]} 12. Be2 {[%clk 01:18:40]} {[%emt 00:04:45]} Qa5 {[%clk
01:10:30]} {[%emt 00:17:25]} 13. Bf3 {[%clk 01:12:03]} {[%emt 00:07:07]} O-O
{[%clk 00:59:45]} {[%emt 00:11:16]} 14. Qe3 {[%clk 01:02:22]} {[%emt 00:10:11]}
Rfd8 {[%clk 00:51:54]} {[%emt 00:08:20]} 15. e5 {[%clk 00:55:35]} {[%emt
00:07:18]} Bxf3 {[%clk 00:43:30]} {[%emt 00:08:53]} 16. gxf3 {[%clk 00:55:08]}
{[%emt 00:00:58]} dxe5 {[%clk 00:43:39]} {[%emt 00:00:21]} 17. fxe5 {[%clk
00:53:43]} {[%emt 00:01:55]} Nd5 {[%clk 00:35:07]} {[%emt 00:09:01]} 18. Nxd5
{[%clk 00:48:16]} {[%emt 00:05:57]} Bxg5 {[%clk 00:35:25]} {[%emt 00:00:12]} 19.
Qxg5 {[%clk 00:47:39]} {[%emt 00:01:07]} Rxd5 {[%clk 00:33:51]} {[%emt
00:02:05]} 20. f4 {[%clk 00:42:36]} {[%emt 00:05:32]} Rad8 {[%clk 00:30:17]}
{[%emt 00:04:04]} 21. Qg4 {[%clk 00:41:44]} {[%emt 00:01:22]} Qa4 {[%clk
00:24:59]} {[%emt 00:05:46]} 22. Rxd5 {[%clk 00:39:28]} {[%emt 00:02:49]} Rxd5
{[%clk 00:25:04]} {[%emt 00:00:25]} 23. Rd1 {[%clk 00:39:37]} {[%emt 00:00:20]}
Rxd1+ {[%clk 00:17:04]} {[%emt 00:08:31]} 24. Qxd1 {[%clk 00:39:15]} {[%emt
00:00:52]} h6 {[%clk 00:17:24]} {[%emt 00:00:09]} 25. Qd2 {[%clk 00:38:10]}
{[%emt 00:01:36]} Qe4 {[%clk 00:17:32]} {[%emt 00:00:22]} 26. b3 {[%clk
00:36:08]} {[%emt 00:02:32]} Kh7 {[%clk 00:15:47]} {[%emt 00:02:14]} 27. Qf2
{[%clk 00:35:10]} {[%emt 00:01:28]} f6 {[%clk 00:12:08]} {[%emt 00:04:09]} 28.
exf6 {[%clk 00:31:34]} {[%emt 00:04:07]} gxf6 {[%clk 00:12:30]} {[%emt
00:00:08]} 29. Qg3 {[%clk 00:31:31]} {[%emt 00:00:33]} b5 {[%clk 00:09:35]}
{[%emt 00:03:24]} 30. a3 {[%clk 00:29:50]} {[%emt 00:02:12]} Qd4 {[%clk
00:08:03]} {[%emt 00:02:00]} 31. h4 {[%clk 00:27:16]} {[%emt 00:03:05]} a5
{[%clk 00:07:15]} {[%emt 00:01:18]} 32. Qf3 {[%clk 00:24:26]} {[%emt 00:03:20]}
Qd5 {[%clk 00:04:50]} {[%emt 00:02:55]} 33. Qxd5 {[%clk 00:21:00]} {[%emt
00:03:56]} exd5 {[%clk 00:05:16]} {[%emt 00:00:05]} 34. f5 {[%clk 00:21:20]}
{[%emt 00:00:09]} Kg7 {[%clk 00:01:56]} {[%emt 00:03:51]} 35. Kb2 {[%clk
00:21:15]} {[%emt 00:00:34]} d4 {[%clk 00:01:41]} {[%emt 00:00:45]} 36. Kc1
{[%clk 00:20:21]} {[%emt 00:01:25]} Kf7 {[%clk 00:02:03]} {[%emt 00:00:08]} 37.
Kd2 {[%clk 00:20:45]} {[%emt 00:00:06]} Ke7 {[%clk 00:02:21]} {[%emt 00:00:12]}
38. Kd3 {[%clk 00:21:11]} {[%emt 00:00:03]} Kd6 {[%clk 00:02:27]} {[%emt
00:00:25]} 39. Kxd4 {[%clk 00:21:38]} {[%emt 00:00:02]} h5 {[%clk 00:02:50]}
{[%emt 00:00:08]} 40. c4 {[%clk 00:21:35]} {[%emt 00:00:32]} a4 {[%clk
00:02:48]} {[%emt 00:00:33]} 41. bxa4 {[%clk 00:21:34]} {[%emt 00:00:30]} bxa4
{[%clk 00:03:13]} {[%emt 00:00:05]} 42. c5+ {[%clk 00:21:46]} {[%emt 00:00:19]}
Kc6 {[%clk 00:03:38]} {[%emt 00:00:05]} 43. Kc4 {[%clk 00:22:07]} {[%emt
00:00:09]} 1-0

[Event "Schack-SM 2024: Mastarklassen"]
[Site "Fortnox Arena, Hejaregatan 5, Vaxjo, Sweden"]
[Date "2024.07.05"]
[Round "7.14"]
[White "Arvidsson, Jonas"]
[Black "Karlsson, Jorgen"]
[Result "0-1"]
[TimeControl "90 minutes for 40 moves + 30 minutes for the rest of the game + 30 seconds per move from move one."]
[WhiteElo "1960"]
[BlackElo "2020"]

1. e4 {[%clk 01:30:58]} d6 {[%clk 01:30:52]} {[%emt 00:00:08]} 2. d4 {[%clk
01:31:13]} {[%emt 00:00:15]} g6 {[%clk 01:31:17]} {[%emt 00:00:05]} 3. Nc3
{[%clk 01:31:21]} {[%emt 00:00:22]} a6 {[%clk 01:31:40]} {[%emt 00:00:08]} 4.
Be3 {[%clk 01:31:11]} {[%emt 00:00:39]} b5 {[%clk 01:31:36]} {[%emt 00:00:35]}
5. Qd2 {[%clk 01:30:23]} {[%emt 00:01:18]} Bb7 {[%clk 01:31:57]} {[%emt
00:00:08]} 6. f3 {[%clk 01:30:00]} {[%emt 00:00:55]} Nd7 {[%clk 01:31:55]}
{[%emt 00:00:31]} 7. h4 {[%clk 01:28:26]} {[%emt 00:02:04]} h6 {[%clk
01:32:16]} {[%emt 00:00:09]} 8. O-O-O {[%clk 01:27:44]} {[%emt 00:01:11]} Bg7
{[%clk 01:30:59]} {[%emt 00:01:48]} 9. Kb1 {[%clk 01:26:17]} {[%emt 00:01:57]}
c6 {[%clk 01:26:02]} {[%emt 00:05:27]} 10. Nh3 {[%clk 01:23:23]} {[%emt
00:03:23]} Qc7 {[%clk 01:25:43]} {[%emt 00:00:50]} 11. f4 {[%clk 01:20:08]}
{[%emt 00:03:45]} Nb6 {[%clk 01:17:14]} {[%emt 00:08:59]} 12. h5 {[%clk
01:16:27]} {[%emt 00:04:11]} gxh5 {[%clk 01:14:44]} {[%emt 00:03:01]} 13. e5
{[%clk 01:10:54]} {[%emt 00:06:02]} O-O-O {[%clk 01:13:28]} {[%emt 00:01:46]}
14. Qf2 {[%clk 01:05:54]} {[%emt 00:05:29]} b4 {[%clk 01:12:17]} {[%emt
00:01:42]} 15. Ne4 {[%clk 01:03:29]} {[%emt 00:02:56]} dxe5 {[%clk 01:12:32]}
{[%emt 00:00:14]} 16. fxe5 {[%clk 01:03:19]} {[%emt 00:00:41]} Bxe5 {[%clk
01:12:50]} {[%emt 00:00:11]} 17. Bxa6 {[%clk 01:01:37]} {[%emt 00:02:13]} Nf6
{[%clk 01:04:08]} {[%emt 00:09:11]} 18. Bxb7+ {[%clk 00:59:15]} {[%emt
00:02:52]} Qxb7 {[%clk 01:04:22]} {[%emt 00:00:16]} 19. dxe5 {[%clk 00:56:33]}
{[%emt 00:03:13]} Nxe4 {[%clk 01:03:58]} {[%emt 00:00:52]} 20. Qf5+ {[%clk
00:56:25]} {[%emt 00:00:39]} e6 {[%clk 01:01:35]} {[%emt 00:02:53]} 21. Qxe4
{[%clk 00:56:52]} {[%emt 00:00:02]} Nd5 {[%clk 01:01:48]} {[%emt 00:00:18]} 22.
Bc5 {[%clk 00:50:04]} {[%emt 00:07:18]} Rhg8 {[%clk 01:01:47]} {[%emt
00:00:30]} 23. Nf4 {[%clk 00:48:14]} {[%emt 00:02:20]} Rg4 {[%clk 01:01:50]}
{[%emt 00:00:27]} 24. g3 {[%clk 00:45:06]} {[%emt 00:03:40]} Qb5 {[%clk
01:02:07]} {[%emt 00:00:12]} 25. Bd6 {[%clk 00:43:02]} {[%emt 00:02:34]} Rxd6
{[%clk 01:02:27]} {[%emt 00:00:10]} 26. Nxd5 {[%clk 00:37:06]} {[%emt
00:06:26]} Rxe4 {[%clk 00:58:02]} {[%emt 00:04:55]} 27. Ne7+ {[%clk 00:37:25]}
{[%emt 00:00:10]} Kd7 {[%clk 00:58:26]} {[%emt 00:00:06]} 28. exd6 {[%clk
00:37:37]} {[%emt 00:00:18]} Qe2 {[%clk 00:58:01]} {[%emt 00:00:55]} 29. Nxc6
{[%clk 00:35:01]} {[%emt 00:03:07]} Rc4 {[%clk 00:57:45]} {[%emt 00:00:46]} 30.
Rhf1 {[%clk 00:32:40]} {[%emt 00:02:51]} Rxc6 {[%clk 00:56:52]} {[%emt
00:01:23]} 31. Rxf7+ {[%clk 00:30:47]} {[%emt 00:02:23]} Ke8 {[%clk 00:57:15]}
{[%emt 00:00:06]} 32. d7+ {[%clk 00:30:32]} {[%emt 00:00:46]} Kxf7 {[%clk
00:57:29]} {[%emt 00:00:16]} 33. d8=Q {[%clk 00:30:52]} {[%emt 00:00:07]} Qxc2+
{[%clk 00:57:51]} {[%emt 00:00:10]} 34. Ka1 {[%clk 00:31:17]} {[%emt 00:00:06]}
Qc1+ {[%clk 00:58:14]} {[%emt 00:00:06]} 35. Rxc1 {[%clk 00:31:38]} {[%emt
00:00:10]} Rxc1# {[%clk 00:58:38]} {[%emt 00:00:06]} 0-1